Cogmind - Beta 14 @@@ ROGUE MODE // 2024.11.01 @ 19:15:13 Player: Kole Result: Destroyed by D-53 Grenadier with Mini Grenade Launcher Performance ------------- Evolutions (1) 500 Regions Visited (3) 600 Robots Destroyed (30) 150 Value Destroyed (758) 758 Prototype IDs (5) 100 Alien Tech Used (0) 0 Bonus (0) 0 TOTAL SCORE: 2108 Bonus ------- None Cogmind --------- Core Integrity 0/400 Matter 164/300 Energy 99/100 System Corruption 0% Temperature Cool (0) Movement Core (50) Location -9/Mines Parts ------- > --- POWER (1) -------- (None) > --- PROPULSION (4) --- (None) > --- UTILITY (2) ------ Improved Signal Interpreter > --- WEAPON (2) ------- (None) > --- INVENTORY (5) ---- Improved Ion Engine Improved Signal Interpreter Enhanced Autogun Enhanced Autogun Bore Cannon Peak State ------------ > --- POWER ------------ (None) > --- PROPULSION ------- Flight Unit Flight Unit Improved Flight Unit > --- UTILITY ---------- Small Storage Unit Improved Signal Interpreter > --- WEAPON ----------- Enhanced Autogun Enhanced Autogun > --- INVENTORY -------- Light Ion Engine Improved Ion Engine Improved Signal Interpreter Enhanced Autogun Grenade Launcher [Rating: 18] Favorites ----------- Power Ion Engine Engine Ion Engine Propulsion Aluminum Leg Leg Aluminum Leg Flight Unit Flight Unit Utility Small Storage Unit Device Heat Sink Storage Small Storage Unit Processor Improved Signal Interpreter Protection Propulsion Shielding Weapon Small Laser Energy Gun Small Laser Ballistic Gun Assault Rifle Launcher Grenade Launcher Build | -11 -10 -9 -9 ------- Run | Yrd Mat Mat Min Slots Evolved 2 | . . 2 . Power . | . . . . Propulsion 2 | . . 2 . Utility . | . . . . Weapon . | . . . . Parts Attached 34 | 6 3 17 8 Power 5 | 1 . 2 2 Engine 5 | 1 . 2 2 Core . | . . . . Reactor . | . . . . Propulsion 13 | 2 2 5 4 Treads . | . . . . Leg 9 | 2 2 5 . Wheel . | . . . . Hover . | . . . . Flight 4 | . . . 4 Utility 6 | 1 1 4 . Device 1 | . . 1 . Storage 1 | 1 . . . Processor 1 | . . 1 . Hackware . | . . . . Protection 3 | . 1 2 . Artifact . | . . . . Weapon 10 | 2 . 6 2 Energy Gun 3 | 1 . 2 . Energy Cannon . | . . . . Ballistic Gun 6 | 1 . 4 1 Ballistic Cannon . | . . . . Launcher 1 | . . . 1 Special Weapon . | . . . . Impact Weapon . | . . . . Slashing Weapon . | . . . . Piercing Weapon . | . . . . Special Melee Weapon . | . . . . Unidentified Prototypes 1 | . . 1 . Parts Lost 21 | . 1 9 11 Power 3 | . . 1 2 Propulsion 8 | . . 1 7 Utility 4 | . 1 3 . Weapon 6 | . . 4 2 Highest Loss Streak 5 | . 1 5 5 To Critical Strikes 2 | . . 1 1 Average Slot Usage (%) 91 | . 98 94 69 Engine 11 | . 14 11 7 Leg 33 | . 28 41 13 Flight 2 | . . . 13 Storage 10 | . 14 11 4 Processor 2 | . . 1 11 Protection 7 | . 12 8 . Energy Gun 12 | . 26 10 . Ballistic Gun 9 | . 1 9 18 Peak Build Rating 18 | 6 7 17 18 Average Rating 10 | 4 6 10 14 On Entrance 7 | . 6 7 17 Naked Turns . | . . . . Heaviest Build 18 | 13 13 18 14 Greatest Support 40 | 20 20 40 30 Greatest Overweight (x) 1 | 1 . . . Average Overweight (x) . | . . . . Largest Inventory Capacity 8 | 8 8 8 8 Average Capacity 7 | 7 8 8 6 Most Carried 8 | 5 8 8 8 Average Carried 6 | 1 6 7 5 Final Capacity 8 | 8 8 8 5 Final Carried 8 | 2 8 8 5 Class Distribution -------------------- 61% | Scavenger-Mutant 38% | Mutant Dominant Class ---------------- Mutant | -10/Materials Scavenger-Mutant | -9/Materials Mutant | -9/Mines Resources | -11 -10 -9 -9 ----------- Run | Yrd Mat Mat Min Matter Collected 717 | 185 95 316 121 Remotely . | . . . . Salvage Created 1020 | . 248 605 167 Parts 61 | . 13 43 5 Haulers Intercepted . | . . . . Recyclers Shooed 2 | . . 1 1 Parts Field Recycled . | . . . . Retrieved Matter . | . . . . Parts Self-Destructed . | . . . . Prevented . | . . . . Kills | -11 -10 -9 -9 ------- Run | Yrd Mat Mat Min Combat Hostiles Destroyed 30 | . 6 18 6 Guns 30 | . 6 18 6 Classes Destroyed 6 | . 1 3 2 Worker 2 | . . 1 1 Recycler 1 | . . . 1 Swarmer 10 | . . 7 3 Grunt 14 | . 6 8 . Sentry 3 | . . 3 . Assembled 3 | . . . 3 Best Kill Streak 5 | . 2 4 5 Combat Bots Only 5 | . 2 4 5 Max Kills in Single Turn 1 | . 1 1 1 Gunslinging . | . . . . Exploded . | . . . . Melee . | . . . . Uniques/NPCs Destroyed . | . . . . Combat | -11 -10 -9 -9 -------- Run | Yrd Mat Mat Min Hostile Shots Fired 267 | . 32 186 49 Missed 95 | . 9 68 18 Damage Taken 2331 | . 288 1323 720 Core 474 | . 49 222 203 Absorbed by Shields . | . . . . Redirected to Shielding 101 | . . 101 . Core Remaining (%) 90 | 100 80 . . Volleys Fired 129 | . 24 76 29 Largest 2 | . 2 2 2 Hottest 79 | . 70 79 50 Shots Fired 221 | . 47 125 49 Gun 217 | . 47 125 45 Cannon . | . . . . Launcher 4 | . . . 4 Special . | . . . . Kinetic 100 | . . 55 45 Thermal 117 | . 47 70 . Explosive 4 | . . . 4 Electromagnetic . | . . . . Robot Hit Streak 16 | . 6 16 6 Robot Miss Streak 4 | . 2 4 4 Penetration Max . | . . . . Secondary Targets 3 | . . 2 1 Max Gunslinging Chain 1 | . . 1 1 Shots Hit Robots 134 | . 30 80 24 Core Hits 60 | . 14 33 13 Critical Kills . | . . . . Critical Parts Destroyed 2 | . . 1 1 Critical Strikes 2 | . . 1 1 Destroy 2 | . . 1 1 Melee Attacks . | . . . . Impact . | . . . . Slashing . | . . . . Piercing . | . . . . Sneak Attacks . | . . . . Combat Hostiles . | . . . . Follow-up Attacks . | . . . . Damage Inflicted 1737 | . 313 971 453 Guns 1630 | . 313 971 346 Cannons . | . . . . Explosions 107 | . . . 107 Melee . | . . . . Ramming . | . . . . Kinetic 922 | . . 576 346 Thermal 708 | . 313 395 . Explosive 107 | . . . 107 Electromagnetic . | . . . . Impact . | . . . . Slashing . | . . . . Piercing . | . . . . Highest Corruption . | . . . . Average Corruption . | . . . . Corruption Purged . | . . . . Corruption Blocked . | . . . . Overload Shots . | . . . . Overflow Damage . | . . . . Projectiles . | . . . . Explosions . | . . . . Melee . | . . . . Knockbacks . | . . . . Impact . | . . . . Kinetic . | . . . . Secondary . | . . . . Self-Inflicted Damage . | . . . . Shots . | . . . . Rammed . | . . . . Targets Rammed . | . . . . Kicked . | . . . . Crushed . | . . . . Highest Temperature 228 | . 228 63 70 Average Temperature 38 | . 69 16 26 Received Heat Transfer 693 | . 183 435 75 Siege Activations . | . . . . Robots Corrupted . | . . . . Combat Hostiles . | . . . . Parts Fried . | . . . . Impact Corruptions . | . . . . Robots Melted . | . . . . Combat Hostiles . | . . . . Parts Melted 1 | . 1 . . Heat Transferred 2060 | . 943 1117 . Parts Sabotaged . | . . . . Parts Stolen . | . . . . Parts Stripped . | . . . . Power Chain Reactions . | . . . . Alert | -11 -10 -9 -9 ------- Run | Yrd Mat Mat Min Peak Influence 351 | . 176 351 141 Initial 105 | . . 74 105 Average 168 | . 99 235 98 Maximum Alert Level 1 | . . 1 . Low Security (%) 60 | 100 100 29 100 Level 1 39 | . . 70 . Level 2 . | . . . . Level 3 . | . . . . Level 4 . | . . . . Level 5 . | . . . . High Security . | . . . . Max Security . | . . . . Squads Dispatched 6 | . 2 4 . Investigation 2 | . . 2 . Extermination . | . . . . Reinforcement 4 | . 2 2 . Assault . | . . . . Garrison . | . . . . Intercept . | . . . . Searches Triggered . | . . . . Construction Impeded . | . . . . Haulers Reinforced . | . . . . Active Scanning Responses . | . . . . Cargo Convoy Interrupts . | . . . . Stealth | -11 -10 -9 -9 --------- Run | Yrd Mat Mat Min Distress Signals 2 | . . 1 1 Communications Jammed . | . . . . Distress Signals . | . . . . Times Spotted 56 | . 9 27 20 Peak Tracking Total 5 | . 2 5 5 Tactical Retreats 4 | . . 2 2 Traps | -11 -10 -9 -9 ------- Run | Yrd Mat Mat Min Traps Triggered 1 | . . 1 . Indirectly . | . . . . Trap Hack Attempts . | . . . . Triggered . | . . . . Disarmed . | . . . . Reprogrammed . | . . . . Reused . | . . . . Traps Extracted . | . . . . Installed . | . . . . Triggered . | . . . . Machines | -11 -10 -9 -9 ---------- Run | Yrd Mat Mat Min Machines Disabled . | . . . . Max in Single Turn . | . . . . Machines Repaired . | . . . . Machines Dismantled . | . . . . Machines Sabotaged . | . . . . Overloaded Fab Kills . | . . . . Hacking | -11 -10 -9 -9 --------- Run | Yrd Mat Mat Min Machines Accessed 9 | . 2 7 . Terminals 6 | . 1 5 . Fabricators . | . . . . Repair Stations 1 | . 1 . . Recycling Units 1 | . . 1 . Scanalyzers 1 | . . 1 . Garrison Access . | . . . . Total Hacks 31 | . 9 22 . Successful 15 | . 4 11 . Failed 16 | . 5 11 . Catastrophic 3 | . . 3 . Database Lockouts . | . . . . Manual 12 | . 3 9 . Terminals 23 | . 6 17 . Fabricators . | . . . . Repair Stations 3 | . 3 . . Recycling Units 2 | . . 2 . Scanalyzers 3 | . . 3 . Garrison Access . | . . . . Terminal Hacks 10 | . 2 8 . Record 3 | . . 3 . Prototype ID Bank 2 | . 1 1 . Level Access Points 1 | . . 1 . Locate Traps 1 | . . 1 . Zone Layout 3 | . 1 2 . Fabricator Hacks . | . . . . Repair Station Hacks 2 | . 2 . . Refit 2 | . 2 . . Recycling Unit Hacks 1 | . . 1 . Retrieve Components 1 | . . 1 . Scanalyzer 2 | . . 2 . Insert Component 1 | . . 1 . Analyze 1 | . . 1 . Garrison Access Hacks . | . . . . Unauthorized Hacks . | . . . . Terminals . | . . . . Fabricators . | . . . . Repair Stations . | . . . . Recycling Units . | . . . . Scanalyzers . | . . . . Garrison Access . | . . . . Data Cores Recovered . | . . . . Used . | . . . . Hacking Detections 9 | . 2 7 . Full Trace Events 2 | . . 2 . Feedback Events . | . . . . Feedback Blocked . | . . . . Robot Schematics Acquired . | . . . . Robots Built . | . . . . Authchips . | . . . . Time . | . . . . Total Robot Build Rating . | . . . . Part Schematics Acquired . | . . . . Parts Built . | . . . . Authchips . | . . . . Time . | . . . . Total Part Build Rating . | . . . . Parts Repaired . | . . . . Time . | . . . . Parts Recycled . | . . . . Recycled Matter . | . . . . Retrieved Matter . | . . . . Retrieved Components . | . . . . Parts Scanalyzed 1 | . . 1 . Part Schematics Acquired . | . . . . Parts Damaged . | . . . . Bothacking | -11 -10 -9 -9 ------------ Run | Yrd Mat Mat Min Used RIF Installer . | . . . . Robots Hacked . | . . . . Non-combat . | . . . . Combat . | . . . . Robot Hacks Applied . | . . . . Relay Couplers Released . | . . . . Fabnet Peak Effective % . | . . . . Robots Rewired . | . . . . Allies Hacked . | . . . . Hacks Repelled . | . . . . Allies | -11 -10 -9 -9 -------- Run | Yrd Mat Mat Min Total Allies 2 | . . . 2 Largest Group 2 | . . . 2 Highest-Rated Group 43 | . . . 43 Highest-Rated Ally 31 | . . . 31 Total Orders . | . . . . Ally Attacks 3 | . . . 3 Total Damage 43 | . . . 43 Kills 1 | . . . 1 Allies Corrupted . | . . . . Allies Melted . | . . . . Intel | -11 -10 -9 -9 ------- Run | Yrd Mat Mat Min Robot Analysis Total . | . . . . Derelict Logs Recovered . | . . . . Drone Launches . | . . . . Drone Recoveries . | . . . . Exploration | -11 -10 -9 -9 ------------- Run | Yrd Mat Mat Min Turns Passed 1597 | 114 349 899 235 Spaces Moved 1032 | 79 192 487 274 Core 22 | 21 . . 1 Treads . | . . . . Legs 809 | 58 192 487 72 Wheels . | . . . . Hover . | . . . . Flight 201 | . . . 201 Fastest Speed 34 | 50 120 120 34 Average Speed 103 | 117 120 120 58 Slowest Speed 190 | 190 120 120 120 Overloaded Moves . | . . . . Propulsion Burnouts . | . . . . Robots Hopped . | . . . . Cave-ins Triggered . | . . . . Exploration Rate (%) 29 | 4 33 36 43 Regions Visited 3 Branch Regions 1 Pre-discovered Areas . | . . . . Known Exits Taken 1 | . . 1 . Unknown Exits Taken 2 | 1 1 . . Scrap Searched . | . . . . Spaces Dug . | . . . . Terrain Destroyed 26 | . . . 26 Melee . | . . . . Projectile 1 | . . . 1 AOE 25 | . . . 25 Terrain Rammed . | . . . . Walls Destroyed . | . . . . Machines Disabled . | . . . . Actions | -11 -10 -9 -9 --------- Run | Yrd Mat Mat Min Total 1365 | 100 265 682 318 Wait 119 | 8 34 76 1 Move 1029 | 78 191 486 274 Hop . | . . . . Pick Up 36 | 8 9 16 3 Fast Attach 6 | . . 5 1 Attach 25 | 6 3 10 6 Detach 1 | . 1 . . Swap 3 | . . 2 1 Drop 17 | . 3 11 3 Fire 129 | . 24 76 29 Melee . | . . . . Ram . | . . . . Kick . | . . . . Crush . | . . . . Escape Stasis . | . . . . Rewire . | . . . . Trap . | . . . . Miscellaneous . | . . . . Route ------- -11/Scrapyard -10/Materials -9/Materials (discovered 4 exits: *Mat x3 / *Min) -9/Mines History --------- Turn | Location | Event 9 | -11/Scrapyard | Discovered new exit (range 16) 115 | -11/Scrapyard | Entered Materials 302 | -10/Materials | Build established: Mutant 393 | -10/Materials | Discovered new exit (range 5) 464 | -10/Materials | Entered another Materials area 464 | -9/Materials | Evolved 2 slots: Propulsion x2 746 | -9/Materials | Identified exit to Materials 777 | -9/Materials | Build established: Scavenger-Mutant 1227 | -9/Materials | Lost 5 parts (1p1n1u2w) 1324 | -9/Materials | Core integrity fell below 50% 1346 | -9/Materials | Discovered new exit (range 13) 1360 | -9/Materials | Identified exit to Mines 1363 | -9/Materials | Entered Mines 1429 | -9/Mines | Assembled infested the area 1434 | -9/Mines | Assisted by a Guerilla fighting off Assembled 1495 | -9/Mines | Lost 5 parts (1p3n1w) 1509 | -9/Mines | Core integrity fell below 20% 1591 | -9/Mines | Lost 4 parts (1p3n) 1598 | -9/Mines | Destroyed by D-53 Grenadier with Mini Grenade Launcher Last Messages --------------- 01536_ Dropped Enh. Autogun. 01539_ Acquired Flight Unit. 01544_ Acquired Enh. Autogun. 01545_ Acquired 20 matter. 01555_ A pair of derelicts emerge from the shadows: "We're, um, lost. You wouldn't happen to know the way out of here, would you?" 01560_ Flight Unit destroyed. 01562_ as-68094 destroyed. 01563_ Dropped Lgt. Ion Engine. 01566_ Acquired 17 matter. 01581_ Acquired 7 matter. 01582_ Acquired 20 matter. 01594_ Flight Unit destroyed. 01596_ The unstable cave ceiling collapses. 01596_ C-30 ARC bursts open, deploying its payload. 01596_ G-34 Mercenary unfolds itself. 01596_ Grenade Launcher destroyed. 01597_ The unstable cave ceiling collapses. Map ----- +----------------------------------------------------+ | ?????????????????????????????# ##???# | | ??????????????????????????#### #???# | | ????????????????????# # ### # #???# | | ????????????????????## # ###### | | ?????????????????"%" = % ##### | | ??????????????????###" % #% #! #???# | | ????????????????????### # ## #???# ## | | ??????????????????????# % ?## # #???# # | | ????????????????????? ?# # #??## | | ????????????????????# ???## # ##### | | ????????????????????? ##?????## ## | | ????????????????????? ????????# """ ## !!! | | ????????????????????# ????????## """ ## ! ! | | ????????????????????# ####?????# """ ## ! | | ???????????????????## ?????# # ### ! | | ?????????????? ### ###### ## #?# # | | ????????????? < ## #?# ##?######## | | ????????????? % *% ##?###?????????? | | ????????????? % =%! ###???????????? | | ????????????? #== # ##??????????? | | ??????????????????????# d #??????????? | | ?????????????????????## # #??????????? | | ?????????????????????# ##??????????? | | ?????????????????????# ## #???????????? | | ####???????####??????# # ##? ?????????? | | ###????## ###???## @ ###?? ####????????? | | ##???# ##### % #???? #???????????? | | ##??# ## * ?? ???????????? | | ## #### g # """ """ ??????????? | | #### ## ## z ######## """ """ ??????????? | | ???## #### ##??????? """???????????????? | | ????# #### ##??????? ??????????????? | | ????## #???????? """ ??????????????? | | ##### #???? """ "?????????????? | | #### ##### #?????""""???????????????? | | ???# #???#### ##?????% ????????????????? | | ???###########???????###???????##????????????????? | | ?????????????????????????????????????????????????? | | | | | | | | | | | | | | | | | | | | | | | | | +----------------------------------------------------+ Best States ------------- Heat Dissipation 38 Energy Generation 12 Energy Capacity 265 Matter Stores 300 Matter Capacity 300 Sight Range 16 Terrain Scan Density 10 Armor Coverage 150 Propulsion Shielding 33 Evasion (%) 63 Item Schematics ----------------- None Robot Schematics ------------------ None Fabricated ------------ Nothing Alien Tech Used ----------------- None Achievements -------------- None Challenges ------------ None Game ------ Seed PhasingSegregatorSystem Manual? 0 Play Time 00:25:09 Cumulative 4.6 hours Start 2024.11.01 @ 18:49:05 End 2024.11.01 @ 19:15:13 Sessions 1 Manual Loads 0 Difficulty Rogue Special Mode None Game No. 9 Rogue 9 Adventurer 0 Explorer 0 Win Type - Total 0 Types 0/0/0/0/0/0/0/0/0 Lore% 6 Gallery% 8 Achievement% 9 Wizard Run 0 Options --------- Layout 1 ASCII 0 Keyboard 0 Movement Arrows Keybinds 0 Fullscreen 2 Font 24/Smallcaps Map View 50x35 Zoom Use 0% Tactical HUD 1 Map Filters NONE Filters NONE Steam 1 RUN: 451a793d-bfa6-4ccc-b78b-a2ae1b40c827